fUSD/lending_fUSD_20250602
["ID","MTS","AMOUNT","RATE_DAILY","PERIOD"]
[363819812,1748886632688,-151.0,0.0002,2]
[363819813,1748886632698,-151.0,0.000201,2]
[363819814,1748886632707,-151.0,0.000201,2]
[363819815,1748886632717,-503.353381,0.000201,2]
[363819816,1748886632727,-503.353381,0.000201,2]
[363819817,1748886632736,-151.0,0.000201,2]
[363819818,1748886632746,-151.0,0.000201,2]
[363819819,1748886632756,-151.0,0.000201,2]
[363819820,1748886632766,-356.178612,0.000201,2]
[363819822,1748886632775,-356.178612,0.000201,2]
[363819823,1748886632785,-150.0,0.00020136,2]
[363819824,1748886632795,-720.0448508,0.00020136,2]
[363819825,1748886632804,-162.78,0.00020187,2]
[363819826,1748886632815,-1817.26,0.00020329,2]
[363819827,1748886632824,-151.0,0.00020356,2]
[363819829,1748886632834,-151.0,0.00020356,2]
[363819832,1748886632843,-503.353381,0.00020356,2]
[363819835,1748886632853,-503.353381,0.00020356,2]
[363819838,1748886632862,-151.0,0.00020356,2]
[363819840,1748886632871,-151.0,0.00020356,2]
[363819842,1748886632881,-151.0,0.00020356,2]
[363819844,1748886632890,-356.178612,0.00020356,2]
[363819846,1748886632900,-356.178612,0.00020356,2]
[363819847,1748886632911,-5215.06634809,0.0002036,2]
[363819848,1748886632931,-18110.51369495,0.0002036,2]
[363819850,1748886636473,845.32,0.00041095,120]
[363819851,1748886636613,460.0,0.00041095,120]
[363819852,1748886638297,-574.41995696,0.0002036,2]
[363819853,1748886638307,-176.29,0.00020406,2]
[363819854,1748886638316,-105.31514267,0.00020422,2]
[363819855,1748886638349,-894.68485733,0.00020422,2]
[363819856,1748886638359,-584.11,0.0002043,2]
[363819857,1748886638368,-250.0,0.00020433,2]
[363819858,1748886638377,-703.53,0.00020449,2]
[363819859,1748886638386,-200.0,0.00020465,2]
[363819860,1748886638395,-167.29,0.00020477,2]
[363819861,1748886638405,-1000.0,0.00020493,2]
[363819862,1748886638414,-300.74,0.00020495,2]
[363819863,1748886638423,-305.59,0.00020495,2]
[363819864,1748886638435,-301.81,0.00020495,2]
[363819865,1748886638445,-300.52,0.00020495,2]
[363819866,1748886638454,-305.48,0.00020495,2]
[363819867,1748886638463,-301.65,0.00020495,2]
[363819868,1748886638473,-300.29,0.00020495,2]
[363819869,1748886638483,-943.0,0.00020495,2]
[363819870,1748886638492,-801.0,0.00020495,2]
[363819871,1748886638502,-1467.0,0.00020495,2]
[363819872,1748886638512,-635.0,0.00020495,2]
[363819873,1748886638522,-613.511,0.00020495,2]
[363819874,1748886638531,-925.0,0.00020495,2]
[363819875,1748886638540,-588.0,0.00020495,2]
[363819876,1748886638550,-557.0,0.00020495,2]
[363819877,1748886638561,-155.0,0.00020495,2]
[363819879,1748886638571,-7010.0,0.00020495,2]
[363819880,1748886638581,-4075.0,0.00020495,2]
[363819881,1748886638590,-882.0,0.00020495,2]
[363819882,1748886638600,-301.17,0.00020502,2]
[363819883,1748886638610,-300.71,0.00020502,2]
[363819884,1748886638619,-300.01,0.00020502,2]
[363819885,1748886638628,-303.42,0.00020502,2]
[363819886,1748886638638,-303.8,0.00020502,2]
[363819887,1748886638648,-303.16,0.00020502,2]
[363819888,1748886638658,-302.28,0.00020502,2]
[363819889,1748886638667,-303.37,0.00020502,2]
[363819890,1748886638676,-300.29,0.00020502,2]
[363819891,1748886638686,-302.1,0.00020502,2]
[363819892,1748886638695,-300.81,0.00020502,2]
[363819893,1748886638707,-305.8,0.00020502,2]
[363819894,1748886638718,-303.66,0.00020502,2]
[363819896,1748886638727,-303.49,0.00020502,2]
[363819898,1748886638736,-304.55,0.00020502,2]
[363819899,1748886638745,-305.77,0.00020502,2]
[363819900,1748886638754,-302.71,0.00020502,2]
[363819901,1748886638763,-305.12,0.00020502,2]
[363819902,1748886638772,-301.97,0.00020502,2]
[363819904,1748886638782,-302.58,0.00020502,2]
[363819905,1748886638791,-305.63,0.00020502,2]
[363819906,1748886638800,-305.64,0.00020502,2]
[363819907,1748886638809,-301.59,0.00020502,2]
[363819908,1748886638818,-301.82,0.00020502,2]
[363819909,1748886638828,-304.24,0.00020502,2]
[363819910,1748886638838,-305.79,0.00020502,2]
[363819911,1748886638847,-303.89,0.00020502,2]
[363819912,1748886638856,-301.79,0.00020502,2]
[363819913,1748886638865,-301.2,0.00020502,2]
[363819914,1748886638874,-151.0,0.00020532,2]
[363819915,1748886638883,-151.0,0.00020532,2]
[363819917,1748886638900,-503.353381,0.00020532,2]
[363819919,1748886638914,-503.353381,0.00020532,2]
[363819921,1748886638924,-151.0,0.00020532,2]
[363819923,1748886638933,-151.0,0.00020532,2]
[363819925,1748886638943,-151.0,0.00020532,2]
[363819927,1748886638954,-356.178612,0.00020532,2]
[363819929,1748886638963,-356.178612,0.00020532,2]
[363819931,1748886638973,-156.587,0.0002086,2]
[363819934,1748886638984,-215.0738,0.0002086,2]
[363819936,1748886638995,-300.66,0.00020894,2]
[363819937,1748886639005,-300.22,0.00020894,2]
[363819939,1748886639015,-302.22,0.00020894,2]
[363819941,1748886639024,-301.26,0.00020894,2]
[363819943,1748886639034,-303.0,0.00020894,2]
[363819946,1748886639043,-301.45,0.00020894,2]
[363819947,1748886639053,-303.4,0.00020894,2]
[363819949,1748886639063,-305.8,0.00020894,2]
[363819951,1748886639073,-300.79,0.00020894,2]
[363819953,1748886639083,-303.02,0.00020894,2]
[363819955,1748886639093,-302.57,0.00020894,2]
[363819957,1748886639102,-302.44,0.00020894,2]
[363819959,1748886639111,-304.29,0.00020894,2]
[363819962,1748886639121,-4880.35566252,0.000209,4]
[363819964,1748886639132,-304.68,0.00020997,2]
[363819965,1748886639141,-302.97,0.00020997,2]
[363819968,1748886639151,-303.22,0.00020997,2]
[363819970,1748886639162,-303.88,0.00020997,2]
[363819972,1748886639172,-151.0,0.00021036,2]
[363819974,1748886639182,-151.0,0.00021036,2]
[363819976,1748886639191,-503.353381,0.00021036,2]
[363819978,1748886639201,-503.353381,0.00021036,2]
[363819980,1748886639211,-151.0,0.00021036,2]
[363819982,1748886639222,-151.0,0.00021036,2]
[363819984,1748886639232,-151.0,0.00021036,2]
[363819986,1748886639242,-356.178612,0.00021036,2]
[363819988,1748886639251,-356.178612,0.00021036,2]
[363819990,1748886639261,-166.59,0.00021046,2]
[363819992,1748886639270,-151.0,0.0002105,2]
[363819994,1748886639280,-288.228176,0.0002105,2]
[363819996,1748886639291,-503.353381,0.0002105,2]
[363819998,1748886639300,-503.353381,0.0002105,2]
[363820000,1748886639310,-151.0,0.0002105,2]
[363820002,1748886639319,-151.0,0.0002105,2]
[363820004,1748886639329,-151.0,0.0002105,2]
[363820006,1748886639339,-356.178612,0.0002105,2]
[363820008,1748886639349,-356.178612,0.0002105,2]
[363820010,1748886639358,-7264.7,0.00021095,2]
[363820012,1748886639367,-300.0,0.00021246,2]
[363820014,1748886639378,-1680.0,0.00021342,2]
[363820016,1748886639388,-565.02,0.00021369,2]
[363820018,1748886639400,-250.0,0.00021403,2]
[363820020,1748886639409,-400.0,0.0002144,2]
[363820022,1748886639419,-250.0,0.0002144,2]
[363820024,1748886639428,-400.0,0.0002144,2]
[363820026,1748886639443,-1000.0,0.0002156,2]
[363820028,1748886639453,-900.4,0.0002157,2]
[363820030,1748886639463,-200.0,0.00021686,2]
[363820032,1748886639472,-500.0,0.00021892,2]
[363820034,1748886639483,-613.15320466,0.00021892,2]
[363820036,1748886639492,-500.0,0.00021892,2]
[363820038,1748886639502,-151.0,0.000219,2]
[363820040,1748886639513,-151.0,0.000219,2]
[363820042,1748886639522,-356.178612,0.000219,2]
[363820044,1748886639531,-356.178612,0.000219,2]
[363820046,1748886639540,-151.0,0.0002197,7]
[363820048,1748886639549,-503.353381,0.0002197,7]
[363820050,1748886639558,-503.353381,0.0002197,7]
[363820052,1748886639569,-151.0,0.0002197,7]
[363820054,1748886639578,-151.0,0.00021985,7]
[363820056,1748886639587,-151.0,0.00021985,7]
[363820058,1748886639596,-356.178612,0.00021985,7]
[363820060,1748886639606,-356.178612,0.00021985,7]
[363820062,1748886639615,-1000.0,0.00021998,7]
[363820064,1748886639625,-1000.0,0.00021998,2]
[363820066,1748886639634,-1000.0,0.00021998,7]
[363820068,1748886639643,-1000.0,0.00021998,2]
[363820070,1748886639652,-1000.0,0.00021998,7]
[363820072,1748886639662,-1000.0,0.00021998,2]
[363820074,1748886639671,-1000.0,0.00021998,7]
[363820076,1748886639681,-1000.0,0.00021998,2]
[363820078,1748886639690,-1000.0,0.00021998,7]
[363820080,1748886639699,-1000.0,0.00021998,2]
[363820082,1748886639708,-1000.0,0.00021998,7]
[363820084,1748886639717,-1000.0,0.00021998,2]
[363820086,1748886639726,-1000.0,0.00021998,7]
[363820088,1748886639735,-1000.0,0.00021998,2]
[363820090,1748886639744,-1000.0,0.00021998,7]
[363820092,1748886639753,-1000.0,0.00021998,2]
[363820094,1748886639763,-1000.0,0.00021998,7]
[363820096,1748886639773,-1000.0,0.00021998,2]
[363820098,1748886639782,-1000.0,0.00021998,7]
[363820100,1748886639791,-1000.0,0.00021998,2]
[363820102,1748886639800,-151.0,0.00022,7]
[363820104,1748886639809,-503.353381,0.00022,7]
[363820106,1748886639819,-503.353381,0.00022,7]
[363820108,1748886639828,-151.0,0.00022,7]
[363820110,1748886639838,-151.0,0.00022,7]
[363820112,1748886639848,-356.178612,0.00022,7]
[363820114,1748886639857,-356.178612,0.00022,7]
[363820116,1748886639867,-369.64184728,0.00022106,2]
[363820118,1748886639876,-500.0,0.00022106,2]
[363820120,1748886639885,-500.0,0.00022106,2]
[363820122,1748886639895,-500.0,0.00022106,2]
[363820124,1748886639904,-500.0,0.00022106,2]
[363820126,1748886639914,-162.380719,0.00022229,2]
[363820128,1748886639923,-223.0315306,0.00022229,2]
[363820130,1748886639933,-1156.41848616,0.0002223,2]
[363820132,1748886639942,-1000.0,0.00022368,2]
[363820134,1748886639951,-416.5241156,0.00022446,2]
[363820136,1748886639961,-784.357964,0.0002254,3]
[363820138,1748886639970,-659.46440991,0.00022654,2]
[363820140,1748886639981,-1022.93291635,0.00022661,2]
[363820142,1748886639990,-204.0,0.00022691,2]
[363820144,1748886640000,-703.53,0.00022712,2]
[363820146,1748886640010,-565.02,0.00022739,2]
[363820148,1748886640020,-500.0,0.00022761,2]
[363820150,1748886640029,-500.0,0.00022761,2]
[363820152,1748886640038,-500.0,0.00022761,2]
[363820154,1748886640047,-500.0,0.00022761,2]
[363820156,1748886640056,-500.0,0.00022761,2]
[363820158,1748886640066,-500.0,0.00022761,2]
[363820160,1748886640075,-500.0,0.00022761,2]
[363820162,1748886640084,-500.0,0.00022761,2]
[363820164,1748886640093,-500.0,0.00022761,2]
[363820166,1748886640103,-500.0,0.00022761,2]
[363820168,1748886640112,-500.0,0.00022761,2]
[363820170,1748886640121,-500.0,0.00022761,2]
[363820172,1748886640131,-500.0,0.00022761,2]
[363820174,1748886640140,-500.0,0.00022761,2]
[363820176,1748886640149,-500.0,0.00022761,2]
[363820178,1748886640159,-500.0,0.00022761,2]
[363820180,1748886640169,-500.0,0.00022761,2]
[363820182,1748886640178,-500.0,0.00022761,2]
[363820184,1748886640187,-500.0,0.00022761,2]
[363820186,1748886640196,-500.0,0.00022761,2]
[363820188,1748886640206,-500.0,0.00022761,2]
[363820190,1748886640215,-500.0,0.00022761,2]
[363820192,1748886640224,-500.0,0.00022761,2]
[363820194,1748886640233,-500.0,0.00022761,2]
[363820195,1748886640242,-500.0,0.00022761,2]
[363820197,1748886640251,-500.0,0.00022761,2]
[363820199,1748886640261,-500.0,0.00022761,2]
[363820201,1748886640273,-500.0,0.00022761,2]
[363820203,1748886640282,-500.0,0.00022761,2]
[363820205,1748886640293,-500.0,0.00022761,2]
[363820208,1748886640303,-500.0,0.00022761,2]
[363820210,1748886640314,-500.0,0.00022761,2]
[363820212,1748886640323,-500.0,0.00022761,2]
[363820214,1748886640335,-500.0,0.00022761,2]
[363820216,1748886640345,-500.0,0.00022761,2]
[363820218,1748886640355,-500.0,0.00022761,2]
[363820220,1748886640365,-500.0,0.00022761,2]
[363820222,1748886640375,-500.0,0.00022761,2]
[363820224,1748886640384,-500.0,0.00022761,2]
[363820226,1748886640394,-500.0,0.00022761,2]
[363820228,1748886640404,-500.0,0.00022761,2]
[363820230,1748886640415,-500.0,0.00022761,2]
[363820232,1748886640425,-500.0,0.00022761,2]
[363820234,1748886640437,-500.0,0.00022761,2]
[363820236,1748886640447,-500.0,0.00022761,2]
[363820238,1748886640456,-500.0,0.00022761,2]
[363820240,1748886640466,-500.0,0.00022761,2]
[363820242,1748886640476,-500.0,0.00022761,2]
[363820244,1748886640485,-500.0,0.00022761,2]
[363820246,1748886640495,-500.0,0.00022761,2]
[363820248,1748886640505,-500.0,0.00022761,2]
[363820250,1748886640515,-500.0,0.00022761,2]
[363820252,1748886640525,-500.0,0.00022761,2]
[363820254,1748886640534,-500.0,0.00022761,2]
[363820256,1748886640546,-500.0,0.00022761,2]
[363820258,1748886640556,-500.0,0.00022761,2]
[363820260,1748886640565,-500.0,0.00022761,2]
[363820262,1748886640574,-500.0,0.00022761,2]
[363820264,1748886640583,-500.0,0.00022761,2]
[363820266,1748886640592,-500.0,0.00022761,2]
[363820268,1748886640601,-500.0,0.00022761,2]
[363820270,1748886640610,-500.0,0.00022761,2]
[363820272,1748886640619,-500.0,0.00022761,2]
[363820274,1748886640628,-500.0,0.00022761,2]
[363820275,1748886640637,-500.0,0.00022761,2]
[363820277,1748886640647,-500.0,0.00022761,2]
[363820279,1748886640656,-500.0,0.00022761,2]
[363820281,1748886640668,-500.0,0.00022761,2]
[363820283,1748886640678,-500.0,0.00022761,2]
[363820285,1748886640687,-500.0,0.00022761,2]
[363820287,1748886640698,-500.0,0.00022761,2]
[363820289,1748886640707,-500.0,0.00022761,2]
[363820291,1748886640716,-500.0,0.00022761,2]
[363820293,1748886640726,-500.0,0.00022761,2]
[363820295,1748886640735,-500.0,0.00022761,2]
[363820297,1748886640745,-500.0,0.00022761,2]
[363820299,1748886640755,-500.0,0.00022761,2]
[363820301,1748886640764,-500.0,0.00022761,2]
[363820303,1748886640774,-500.0,0.00022761,2]
[363820305,1748886640783,-500.0,0.00022761,2]
[363820307,1748886640792,-500.0,0.00022761,2]
[363820309,1748886640802,-500.0,0.00022761,2]
[363820311,1748886640811,-500.0,0.00022761,2]
[363820313,1748886640820,-500.0,0.00022761,2]
[363820315,1748886640830,-973.0,0.00022761,2]
[363820317,1748886640840,-151.0,0.0002277,7]
[363820319,1748886640849,-503.353381,0.0002277,7]
[363820321,1748886640859,-503.353381,0.0002277,7]
[363820323,1748886640869,-500.0,0.00022861,2]
[363820326,1748886640878,-500.0,0.00022861,2]
[363820330,1748886640887,-500.0,0.00022861,2]
[363820333,1748886640897,-500.0,0.00022861,2]
[363820336,1748886640906,-500.0,0.00022861,2]
[363820339,1748886640917,-500.0,0.00022861,2]
[363820342,1748886640926,-500.0,0.00022861,2]
[363820345,1748886640936,-500.0,0.00022861,2]
[363820348,1748886640945,-500.0,0.00022861,2]
[363820351,1748886640955,-500.0,0.00022861,2]
[363820353,1748886640964,-500.0,0.00022861,2]
[363820355,1748886640974,-500.0,0.00022861,2]
[363820357,1748886640983,-500.0,0.00022861,2]
[363820359,1748886640992,-500.0,0.00022861,2]
[363820361,1748886641002,-500.0,0.00022861,2]
[363820363,1748886641011,-500.0,0.00022861,2]
[363820365,1748886641020,-500.0,0.00022861,2]
[363820367,1748886641030,-500.0,0.00022861,2]
[363820369,1748886641039,-500.0,0.00022861,2]
[363820371,1748886641048,-500.0,0.00022861,2]
[363820373,1748886641058,-500.0,0.00022861,2]
[363820375,1748886641067,-500.0,0.00022861,2]
[363820377,1748886641077,-500.0,0.00022861,2]
[363820379,1748886641087,-500.0,0.00022861,2]
[363820381,1748886641096,-500.0,0.00022861,2]
[363820383,1748886641105,-500.0,0.00022861,2]
[363820385,1748886641114,-500.0,0.00022861,2]
[363820387,1748886641123,-500.0,0.00022861,2]
[363820389,1748886641133,-500.0,0.00022861,2]
[363820391,1748886641142,-500.0,0.00022861,2]
[363820393,1748886641151,-500.0,0.00022861,2]
[363820395,1748886641160,-500.0,0.00022861,2]
[363820397,1748886641170,-500.0,0.00022861,2]
[363820399,1748886641179,-500.0,0.00022861,2]
[363820401,1748886641188,-500.0,0.00022861,2]
[363820403,1748886641198,-500.0,0.00022861,2]
[363820405,1748886641207,-500.0,0.00022861,2]
[363820407,1748886641216,-500.0,0.00022861,2]
[363820409,1748886641226,-500.0,0.00022861,2]
[363820411,1748886641236,-500.0,0.00022861,2]
[363820413,1748886641245,-500.0,0.00022861,2]
[363820415,1748886641255,-500.0,0.00022861,2]
[363820417,1748886641264,-500.0,0.00022861,2]
[363820419,1748886641273,-500.0,0.00022861,2]
[363820421,1748886641284,-500.0,0.00022861,2]
[363820423,1748886641293,-500.0,0.00022861,2]
[363820425,1748886641303,-500.0,0.00022861,2]
[363820427,1748886641313,-500.0,0.00022861,2]
[363820429,1748886641323,-500.0,0.00022861,2]
[363820431,1748886641332,-500.0,0.00022861,2]
[363820433,1748886641342,-500.0,0.00022861,2]
[363820435,1748886641351,-500.0,0.00022861,2]
[363820437,1748886641361,-500.0,0.00022861,2]
[363820439,1748886641371,-500.0,0.00022861,2]
[363820441,1748886641380,-500.0,0.00022861,2]
[363820443,1748886641391,-500.0,0.00022861,2]
[363820445,1748886641400,-500.0,0.00022861,2]
[363820447,1748886641410,-500.0,0.00022861,2]
[363820449,1748886641419,-500.0,0.00022861,2]
[363820451,1748886641429,-500.0,0.00022861,2]
[363820453,1748886641443,-500.0,0.00022861,2]
[363820455,1748886641452,-500.0,0.00022861,2]
[363820457,1748886641462,-500.0,0.00022861,2]
[363820459,1748886641475,-500.0,0.00022861,2]
[363820461,1748886641485,-500.0,0.00022861,2]
[363820463,1748886641496,-500.0,0.00022861,2]
[363820466,1748886641507,-500.0,0.00022861,2]
[363820468,1748886641516,-500.0,0.00022861,2]
[363820470,1748886641526,-500.0,0.00022861,2]
[363820471,1748886641535,-500.0,0.00022861,2]
[363820473,1748886641546,-500.0,0.00022861,2]
[363820475,1748886641556,-500.0,0.00022861,2]
[363820477,1748886641566,-775.0,0.00022861,2]
[363820480,1748886641576,-804.1186,0.000229,2]
[363820481,1748886641586,-2500.0,0.000229,2]
[363820483,1748886641596,-1000.0,0.0002297,2]
[363820485,1748886641605,-1000.0,0.0002297,2]
[363820487,1748886641614,-1000.0,0.0002297,2]
[363820489,1748886641623,-1000.0,0.0002297,2]
[363820491,1748886641633,-1604.30819949,0.0002297,2]
[363820493,1748886641643,-400.0,0.0002297,2]
[363820495,1748886641652,-501.62148005,0.0002297,2]
[363820497,1748886641663,-1000.0,0.00022975,2]
[363820499,1748886641673,-404528.76086272,0.00023,4]
[363820501,1748886641682,-2380.95,0.00023,2]
[363820503,1748886641692,-800.0,0.00023,8]
[363820505,1748886641702,-800.0,0.00023,8]
[363820507,1748886641711,-800.0,0.00023,8]
[363820509,1748886641721,-800.0,0.00023,8]
[363820511,1748886641730,-800.0,0.00023,8]
[363820513,1748886641739,-800.0,0.00023,8]
[363820515,1748886641749,-800.0,0.00023,8]
[363820517,1748886641758,-800.0,0.00023,8]
[363820519,1748886641767,-800.0,0.00023,8]
[363820521,1748886641776,-800.0,0.00023,8]
[363820523,1748886641787,-210.6,0.00023,2]
[363820525,1748886641796,-200.0,0.00023,2]
[363820527,1748886641806,-177.93175426,0.00023041,30]
[363820529,1748886641815,-1000.0,0.00023177,2]
[363820531,1748886641826,-182.43,0.00023247,2]
[363820533,1748886641835,-150.0,0.00023288,2]
[363820535,1748886641844,-2351.0,0.00023363,2]
[363820537,1748886641853,-1694.4856,0.00023494,2]
[363820539,1748886641862,-943.0,0.00023495,2]
[363820541,1748886641872,-801.0,0.00023495,2]
[363820543,1748886641882,-1467.0,0.00023495,2]
[363820545,1748886641891,-635.0,0.00023495,2]
[363820547,1748886641901,-925.0,0.00023495,2]
[363820549,1748886641911,-588.0,0.00023495,2]
[363820551,1748886641921,-557.0,0.00023495,2]
[363820553,1748886641930,-155.0,0.00023495,2]
[363820555,1748886641940,-1753.615,0.00023495,2]
[363820557,1748886641949,-4075.0,0.00023495,2]
[363820579,1748886642142,-275.824,0.00023495,2]
[363820581,1748886642152,-375.0,0.000235,2]
[363820583,1748886642162,-767.0,0.000235,2]
[363820585,1748886642172,-237.0,0.000235,2]
[363820587,1748886642182,-1022.93291629,0.00023521,2]
[363820589,1748886642191,-59831.39,0.00023562,2]
[363820591,1748886642200,-12053.0,0.0002358,2]
[363820593,1748886642210,-168.3888056,0.00023598,2]
[363820595,1748886642219,-231.28369723,0.00023598,2]
[363820597,1748886642229,-1700.61,0.00023836,2]
[363820599,1748886642239,-151.0,0.00023836,2]
[363820601,1748886642250,-215.702,0.00023886,5]
[363820603,1748886642260,-340.68,0.00023921,2]
[363820604,1748886642269,-163.09,0.00023932,2]
[363820605,1748886642278,-454.16,0.00023932,2]
[363820606,1748886642288,-1161.73,0.00023932,2]
[363820607,1748886642297,-170.43,0.00023932,2]
[363820608,1748886642306,-326.12,0.00023934,2]
[363820609,1748886642316,-788.0,0.00023942,2]
[363820610,1748886642325,-1000.0,0.00023985,2]
[363820611,1748886642334,-4408.325,0.00023995,5]
[363820612,1748886642343,-500.0,0.00024038,2]
[363820613,1748886642352,-338.8749224,0.00024038,2]
[363820614,1748886642361,-500.0,0.00024038,2]
[363820615,1748886642371,-500.0,0.00024038,2]
[363820616,1748886642382,-500.0,0.00024038,2]
[363820618,1748886642391,-500.0,0.00024038,2]
[363820620,1748886642401,-500.0,0.00024038,2]
[363820622,1748886642411,-500.0,0.00024038,2]
[363820624,1748886642421,-565.02,0.00024109,2]
[363820626,1748886642430,-6966.52924,0.0002416,2]
[363820628,1748886642444,-69128.15849418,0.0002416,2]
[363820630,1748886642454,-1000.0,0.00024192,2]
[363820631,1748886642464,-2000.0,0.00024278,2]
[363820633,1748886642475,-2000.0,0.00024278,2]
[363820635,1748886642486,-1017.4,0.000243,31]
[363820637,1748886642495,-1017.4,0.000243,31]
[363820639,1748886642507,-1017.4,0.000243,31]
[363820641,1748886642518,-1017.4,0.000243,31]
[363820643,1748886642528,-1017.4,0.000243,31]
[363820645,1748886642537,-1017.4,0.000243,31]
[363820647,1748886642548,-1017.4,0.000243,31]
[363820649,1748886642557,-1017.4,0.000243,31]
[363820651,1748886642566,-1017.4,0.000243,31]
[363820653,1748886642576,-1017.4,0.000243,31]
[363820655,1748886642588,-1017.4,0.000243,31]
[363820657,1748886642597,-1017.4,0.000243,31]
[363820660,1748886642608,-1017.4,0.000243,31]
[363820662,1748886642618,-1017.4,0.000243,31]
[363820663,1748886642627,-1017.4,0.000243,31]
[363820666,1748886642637,-933.09892562,0.000243,31]
[363820687,1748886642829,-84.30107438,0.000243,31]
[363820689,1748886642839,-1000.0,0.0002437,2]
[363820691,1748886642849,-400.0,0.0002437,2]
[363820693,1748886642858,-500.0,0.0002438,2]
[363820695,1748886642869,-500.0,0.0002438,2]
[363820697,1748886642879,-500.0,0.0002438,2]
[363820699,1748886642888,-61.71693788,0.0002438,2]
[363820701,1748886642899,-171.99319053,0.0002438,2]
[363820703,1748886642910,-315.41539859,0.0002438,2]
[363820706,1748886642925,-184.58460141,0.0002438,2]
[363820708,1748886642935,-500.0,0.0002438,2]
[363820710,1748886642944,-433.39292458,0.0002438,2]
[363820712,1748886642955,-66.60707542,0.0002438,2]
[363820714,1748886642964,-244.57781758,0.0002438,2]
[363820722,1748886643040,-255.42218242,0.0002438,2]
[363820724,1748886643050,-500.0,0.0002438,2]
[363820727,1748886643059,-500.0,0.0002438,2]
[363820729,1748886643069,-500.0,0.0002438,2]
[363820731,1748886643079,-500.0,0.0002438,2]
[363820733,1748886643088,-500.0,0.0002438,2]
[363820735,1748886643098,-500.0,0.0002438,2]
[363820737,1748886643107,-500.0,0.0002438,2]
[363820739,1748886643117,-500.0,0.0002438,2]
[363820742,1748886643126,-608.15118922,0.0002438,2]
[363820745,1748886643136,-500.0,0.0002438,2]
[363820749,1748886643145,-500.0,0.0002438,2]
[363820752,1748886643155,-500.0,0.0002438,2]
[363820755,1748886643165,-500.0,0.0002438,2]
[363820758,1748886643175,-500.0,0.0002438,2]
[363820761,1748886643185,-500.0,0.0002438,2]
[363820764,1748886643194,-500.0,0.0002438,2]
[363820766,1748886643203,-500.0,0.0002438,2]
[363820768,1748886643214,-500.0,0.0002438,2]
[363820770,1748886643225,-500.0,0.0002438,2]
[363820772,1748886643234,-500.0,0.0002438,2]
[363820774,1748886643244,-1022.93291629,0.00024381,2]
[363820776,1748886643253,-152.0,0.00024384,2]
[363820778,1748886643263,-86.74710889,0.000244,2]
[363820780,1748886643273,-209.2,0.000244,2]
[363820782,1748886643282,-209.2,0.000244,2]
[363820784,1748886643291,-153.0,0.000244,2]
[363820786,1748886643300,-159.0,0.000244,11]
[363820788,1748886643310,-2443.7712,0.000244,2]
[363820790,1748886643319,-2443.7712,0.000244,2]
[363820792,1748886643329,-3072.0271,0.000244,2]
[363820794,1748886643338,-3072.0271,0.000244,2]